bitfinex/quotes_ETHUSD_20251220
["timestamp","ask_amount","ask_price","bid_price","bid_amount"]
[1766236102220,2.9106405,2981.8,2980.9,1.8395]
[1766236102538,0.03344944,2982.4,2980.3,1.8395]
[1766236102736,29.106405,2981.8,2980.5,6.7102835]
[1766236103042,29.106405,2981.9,2981.1,0.5929]
[1766236103239,29.106405,2982.0,2981.4,1.8395]
[1766236103612,1.00783931,2982.5,2981.4,1.8395]
[1766236103942,29.106405,2982.0,2981.4,1.8395]
[1766236104326,29.106405,2982.1,2981.2,0.452]
[1766236104614,29.106405,2982.1,2981.5,1.8395]
[1766236105040,29.106405,2982.1,2981.6,0.452]
[1766236105348,29.106405,2982.2,2981.6,2.2915]
[1766236106737,29.106405,2982.2,2981.7,1.8395]
[1766236107130,29.106405,2982.2,2981.8,4.60027898]
[1766236107329,29.106405,2982.2,2981.8,3.35367898]
[1766236107330,23.904605,2982.2,2981.8,3.35367898]
[1766236107533,23.904605,2982.2,2979.4,5.70332282]
[1766236107534,0.03344944,2982.1,2980.9,1.8395]
[1766236107733,23.904605,2981.3,2981.0,0.452]
[1766236109249,23.904605,2981.4,2981.0,0.452]
[1766236109424,23.904605,2981.4,2981.0,3.80654832]
[1766236109615,23.904605,2981.4,2981.0,0.452]
[1766236110049,23.904605,2981.6,2981.0,3.80657226]
[1766236110219,23.904605,2981.6,2981.1,2.5824]
[1766236110420,23.904605,2981.6,2981.0,3.80657226]
[1766236110421,23.904605,2981.8,2981.2,1.1886]
[1766236110643,23.904605,2981.8,2981.3,1.3938]
[1766236110844,23.904605,2981.8,2981.4,0.452]
[1766236112347,3.35263993,2982.8,2981.4,0.452]
[1766236112348,23.904605,2981.9,2981.4,5.19991706]
[1766236112557,3.35281138,2982.6,2981.5,1.3938]
[1766236112558,23.904605,2982.0,2981.5,1.3938]
[1766236112723,1.34384965,2982.6,2981.7,2.5824]
[1766236112922,1.00856851,2982.6,2981.8,0.452]
[1766236113231,23.904605,2982.2,2981.8,0.452]
[1766236114733,23.904605,2982.1,2981.9,0.452]
[1766236115948,0.03344944,2982.0,2981.9,0.452]
[1766236116153,0.03344944,2982.5,2981.9,0.452]
[1766236116452,23.904605,2982.2,2981.9,3.1187]
[1766236116855,23.904605,2982.2,2981.9,6.47224738]
[1766236117044,18.300005,2982.2,2981.9,6.47224738]
[1766236117249,0.9153,2983.3,2981.9,6.47224738]
[1766236117250,0.17523639,2983.7,2982.1,13.11580845]
[1766236117426,1.1888,2983.6,2982.4,1.4165]
[1766236117627,1.1888,2983.5,2981.6,1.4165]
[1766236117826,1.1888,2983.3,2981.9,3.35356225]
[1766236118125,1.1888,2983.1,2981.9,1.4165]
[1766236118323,1.1888,2982.9,2981.9,4.76999217]
[1766236118556,1.1888,2982.9,2981.9,4.76998325]
[1766236118754,1.1888,2982.9,2982.0,3.35343954]
[1766236118957,1.1888,2982.9,2982.1,0.452]
[1766236119355,0.001,2982.5,2982.1,0.452]
[1766236119558,0.001,2982.5,2982.1,5.22184131]
[1766236121068,3.35188768,2983.4,2982.4,1.4165]
[1766236121069,1.1888,2983.4,2982.4,1.4165]
[1766236121353,1.1888,2983.2,2982.5,0.451]
[1766236121957,1.1888,2983.2,2982.5,3.80385079]
[1766236122130,1.1888,2983.2,2982.5,0.451]
[1766236122332,1.1888,2983.2,2982.5,3.80388335]
[1766236122531,1.1888,2983.2,2982.5,0.451]
[1766236123129,1.1888,2983.2,2982.5,1.8675]
[1766236123333,1.1888,2983.2,2982.5,5.22038451]
[1766236123831,1.1888,2983.5,2982.6,1.4165]
[1766236124952,1.1888,2983.5,2982.7,0.451]
[1766236125152,1.1888,2983.3,2982.7,0.451]
[1766236126440,1.22224944,2983.2,2982.4,0.451]
[1766236127166,0.451,2983.1,2981.8,1.4165]
[1766236127469,1.1888,2983.0,2982.0,3.3534177]
[1766236127639,1.1888,2983.0,2981.9,5.22306605]
[1766236128448,1.1888,2982.8,2981.9,5.22306605]
[1766236128742,1.1888,2982.8,2981.9,1.8695]
[1766236129063,1.22224944,2982.8,2981.9,1.8695]
[1766236129447,1.1888,2983.1,2982.1,1.4165]
[1766236129651,1.6398,2983.1,2982.3,1.4165]
[1766236129863,1.6398,2983.1,2982.3,1.8675]
[1766236130063,1.1888,2983.0,2982.3,0.451]
[1766236131660,1.1888,2983.0,2981.8,3.35363435]
[1766236131661,1.064,2981.7,2979.5,2.6667]
[1766236131862,5.489616,2980.3,2979.5,2.6667]
[1766236132071,5.489616,2980.3,2979.6,1.4165]
[1766236132277,5.489616,2980.3,2979.0,0.452]
[1766236132278,5.489616,2979.8,2978.3,0.01006559]
[1766236132572,5.489616,2979.8,2979.3,3.35638123]
[1766236132771,5.489616,2979.8,2979.3,4.77288123]
[1766236133073,1.1888,2980.7,2979.5,1.2502]
[1766236133269,1.1888,2980.7,2979.7,1.4165]
[1766236133470,0.452,2980.6,2979.8,1.4165]
[1766236133652,0.452,2980.5,2979.8,1.4165]
[1766236134171,0.03344944,2980.6,2979.8,1.4165]
[1766236134469,0.452,2981.1,2980.3,1.4165]
[1766236134669,1.1888,2981.4,2980.3,1.2502]
[1766236134670,1.22224944,2981.4,2980.3,1.2502]
[1766236134874,12.75240845,2982.6,2980.9,1.2502]
[1766236134875,1.1888,2981.8,2980.9,1.2502]
[1766236135048,0.452,2981.9,2981.0,1.4165]
[1766236135253,1.22224944,2981.8,2981.0,1.4165]
[1766236135437,1.22224944,2981.8,2979.9,2.6667]
[1766236135641,1.22224944,2981.8,2980.1,1.4165]
[1766236136160,1.23231807,2981.8,2980.1,1.4165]
[1766236136355,1.1888,2981.6,2980.0,0.452]
[1766236136556,1.1888,2981.4,2979.7,1.8685]
[1766236136870,1.1888,2981.2,2979.8,3.35591319]
[1766236137060,1.1888,2981.2,2979.9,1.4165]
[1766236138241,3.80655972,2981.1,2979.9,1.4165]
[1766236138471,0.01106559,2983.2,2979.9,4.77230941]
[1766236138472,1.1888,2981.0,2979.9,4.77230941]
[1766236138675,1.1888,2981.0,2980.1,1.4165]
[1766236138972,1.1888,2980.9,2979.9,4.77230941]
[1766236139380,0.03344944,2980.8,2979.9,4.77230941]
[1766236139979,0.452,2980.9,2980.0,1.2502]
[1766236140173,0.452,2980.9,2979.9,6.71162671]
[1766236140379,0.452,2980.9,2980.2,2.6667]
[1766236140687,0.452,2981.4,2980.6,1.2502]
[1766236140972,1.1888,2981.8,2980.9,1.4165]
[1766236141173,1.1888,2981.8,2981.0,1.4165]
[1766236141475,1.22224944,2981.8,2981.0,1.4165]
[1766236141657,3.35394576,2982.5,2981.0,1.2502]
[1766236141658,1.1888,2982.2,2981.0,1.2502]
[1766236141979,1.1888,2982.0,2981.1,0.452]
[1766236142174,0.452,2981.9,2981.3,1.4165]
[1766236142379,1.1888,2982.4,2981.5,1.4165]
[1766236142677,0.453,2982.5,2981.7,1.4165]
[1766236142864,1.1888,2982.4,2981.2,1.4165]
[1766236143072,1.1888,2982.2,2981.2,4.77085213]
[1766236143454,0.03344944,2982.1,2981.2,0.8306681]
[1766236143778,0.03344944,2982.1,2980.6,3.35497877]
[1766236143779,1.1888,2981.7,2979.6,0.002]
[1766236143947,1.1888,2981.5,2979.8,1.2502]
[1766236144274,1.1888,2981.3,2980.1,0.002]
[1766236144478,1.7484,2981.1,2980.1,0.002]
[1766236145363,1.7484,2981.1,2980.2,1.809]
[1766236145568,0.452,2981.0,2980.3,1.991]
[1766236145956,3.35381061,2981.7,2980.1,0.002]
[1766236145957,1.7484,2981.6,2980.5,1.991]
[1766236146246,3.35334972,2982.1,2980.9,3.35469153]
[1766236146444,1.7484,2981.9,2980.9,5.34569153]
[1766236146648,1.7484,2981.9,2980.9,1.991]
[1766236147283,1.7484,2981.9,2981.0,1.991]
[1766236147469,0.452,2981.8,2981.0,1.991]
[1766236147665,1.7484,2981.9,2981.0,1.991]
[1766236147865,0.452,2981.8,2981.0,1.991]
[1766236148375,0.452,2981.8,2981.2,1.991]
[1766236148547,0.452,2982.0,2981.2,3.8]
[1766236148749,0.452,2982.0,2981.3,1.991]
[1766236149444,1.7484,2982.3,2981.4,1.809]
[1766236149647,0.452,2982.2,2981.5,1.991]
[1766236149867,0.452,2982.2,2981.1,3.35446647]
[1766236149868,2.2004,2982.2,2981.2,2.443]
[1766236150265,2.2004,2982.2,2981.2,2.261]
[1766236150469,2.2004,2982.2,2981.3,1.991]
[1766236151452,2.2004,2982.2,2980.1,1.993]
[1766236151453,0.0866,2981.4,2980.1,1.993]
[1766236151651,1.7484,2980.9,2980.1,0.002]
[1766236152052,1.835,2980.9,2980.1,0.002]
[1766236152314,1.7484,2980.9,2980.1,0.002]
[1766236152489,0.03344944,2980.8,2980.1,0.002]
[1766236152985,0.03344944,2980.8,2980.1,1.993]
[1766236153170,0.03344944,2981.1,2980.2,1.991]
[1766236153996,0.03344944,2981.1,2980.6,0.002]
[1766236155584,0.2214,2981.5,2980.6,0.002]
[1766236155785,1.7484,2981.6,2980.7,1.809]
[1766236156000,1.7484,2981.4,2980.6,0.454]
[1766236156379,0.03344944,2981.7,2980.8,1.991]
[1766236157496,5.10208796,2981.8,2980.9,1.991]
[1766236157497,1.7484,2981.8,2980.9,1.991]
[1766236157798,1.7484,2981.8,2981.0,0.452]
[1766236157995,5.10208378,2981.8,2981.0,0.452]
[1766236158200,2.29205782,2981.7,2981.0,0.452]
[1766236158406,1.7484,2982.1,2981.0,4.252]
[1766236158567,1.7484,2982.0,2981.0,4.252]
[1766236158767,1.7484,2982.0,2981.0,7.60657129]
[1766236159099,0.001,2982.2,2981.2,1.991]
[1766236159298,0.001,2982.2,2981.0,7.16115029]
[1766236160602,0.001,2982.2,2981.1,3.8]
[1766236160775,0.001,2982.2,2981.0,7.16115029]
[1766236161100,1.7494,2982.2,2981.2,1.991]
[1766236161298,0.03344944,2982.1,2981.2,1.991]
[1766236162403,0.03344944,2982.1,2981.1,0.452]
[1766236162404,1.78184944,2982.1,2981.1,0.452]
[1766236162610,1.92668494,2982.0,2981.2,1.991]
[1766236162784,0.001,2982.2,2981.5,1.991]
[1766236163302,0.001,2982.2,2981.6,1.991]
[1766236163480,0.001,2982.2,2981.7,0.452]
[1766236164409,0.001,2982.2,2981.8,1.991]
[1766236164705,0.001,2982.5,2981.7,0.452]
[1766236164908,1.7484,2982.4,2981.7,0.452]
[1766236165103,1.78184944,2982.3,2981.7,0.452]
[1766236165407,0.001,2982.5,2981.9,3.8]
[1766236166492,0.001,2982.5,2982.0,3.8]
[1766236166698,0.001,2982.5,2982.1,0.452]
[1766236168306,0.001,2983.0,2982.2,1.809]
[1766236168510,0.001,2983.0,2982.2,3.8]
[1766236168919,1.7494,2983.0,2982.2,3.8]
[1766236169290,1.7494,2983.0,2982.2,7.15321846]
[1766236170619,0.001,2983.0,2982.3,4.1911]
[1766236171217,0.001,2983.0,2982.4,2.2474]
[1766236171427,0.001,2983.0,2982.5,2.6994]
[1766236171916,0.001,2983.2,2982.7,2.2474]
[1766236172348,0.001,2983.2,2982.8,4.1911]
[1766236172491,0.001,2983.2,2982.9,0.452]
[1766236174494,3.3526216,2983.7,2982.9,0.452]
[1766236174495,2.033,2983.7,2982.9,0.452]
[1766236174722,2.032,2983.4,2983.0,0.452]
[1766236175016,2.032,2983.4,2983.1,0.452]
[1766236176528,0.03344944,2983.4,2983.1,0.452]
[1766236176827,2.29703494,2983.7,2983.1,0.452]
[1766236179713,2.29703494,2983.7,2980.6,0.002]
[1766236179714,0.01006863,2982.4,2980.6,0.002]
[1766236179911,1.87,2981.3,2980.2,2.3518]
[1766236180122,1.87806863,2980.7,2980.0,0.002]
[1766236180310,1.90951807,2980.6,2980.0,0.002]
[1766236180627,1.90951807,2980.6,2979.6,0.002]
[1766236180834,1.9925,2981.0,2979.8,2.8048]
[1766236180998,0.01006863,2980.8,2979.9,2.3518]
[1766236181198,0.03344944,2980.7,2979.9,2.3518]
[1766236184142,2.0176,2981.0,2980.1,2.3518]
[1766236184322,2.0176,2981.0,2980.2,0.453]
[1766236184636,5.37218574,2981.0,2980.2,0.453]
[1766236185038,5.3722291,2981.0,2980.2,0.453]
[1766236185212,2.0176,2981.0,2980.2,0.453]
[1766236185420,5.38012893,2981.4,2980.2,4.8162]
[1766236185615,5.38012893,2981.4,2980.3,2.3518]
[1766236186203,2.026,2981.4,2980.3,2.0114]
[1766236186443,2.07361807,2981.3,2980.4,2.3518]
[1766236186630,2.95279249,2981.3,2980.4,2.3518]
[1766236186932,3.35435395,2981.2,2980.4,2.3518]
[1766236187140,0.03344944,2981.1,2980.4,2.3518]
[1766236187327,2.90927442,2981.3,2980.4,2.3518]
[1766236187328,6.29700299,2981.3,2980.4,2.3518]
[1766236187635,9.65318212,2981.3,2980.4,2.3518]
[1766236187811,3.00738684,2981.2,2980.4,2.3518]
[1766236188134,2.032,2981.1,2980.3,2.3518]
[1766236188333,0.96531821,2981.2,2980.3,2.3518]
[1766236188638,2.032,2981.1,2980.3,2.3518]
[1766236189543,0.96531821,2981.2,2980.3,2.3518]
[1766236189746,0.03344944,2981.3,2980.4,4.3632]
[1766236190609,2.032,2981.3,2980.4,4.3632]
[1766236191046,2.032,2981.3,2980.5,2.3518]
[1766236191339,2.032,2981.3,2980.6,0.453]
[1766236192254,2.032,2981.3,2980.5,2.3518]
[1766236192439,2.57162022,2981.3,2980.6,0.453]
[1766236192744,5.92589157,2981.3,2980.6,0.453]
[1766236193050,5.95934101,2981.3,2980.6,0.453]
[1766236193454,5.95934101,2981.3,2979.9,0.002]
[1766236193455,2.032,2980.9,2979.9,0.002]
[1766236193636,2.032,2980.9,2980.0,0.452]
[1766236193637,0.20420686,2980.8,2980.0,0.452]
[1766236194862,2.23620686,2980.8,2980.0,0.452]
[1766236196350,5.38681271,2980.8,2980.0,0.452]
[1766236196757,3.35481271,2980.8,2979.6,0.002]
[1766236196921,0.03344944,2980.7,2979.9,2.3518]
[1766236197254,0.03344944,2980.7,2980.0,0.002]
[1766236197419,5.42017659,2980.9,2980.1,0.452]
[1766236197620,5.96219425,2980.9,2980.1,0.452]
[1766236198029,5.92874481,2980.9,2980.1,0.452]
[1766236198328,0.03344944,2980.8,2980.1,0.452]
[1766236198528,2.06544944,2980.8,2980.1,0.452]
[1766236199855,2.032,2980.8,2980.1,2.8038]
[1766236200031,3.89674481,2980.9,2980.1,2.8038]
[1766236200236,0.54201766,2980.9,2980.1,2.8038]
[1766236201561,0.54201766,2980.9,2980.3,2.3518]
[1766236201854,0.38966392,2980.8,2980.3,2.3518]
[1766236202035,2.032,2981.1,2980.3,2.3518]
[1766236202384,2.032,2981.1,2980.4,2.3518]
[1766236202529,2.032,2981.1,2980.5,0.452]
[1766236202726,2.032,2981.2,2980.5,0.452]
[1766236202937,2.032,2981.0,2980.5,0.452]
[1766236203735,0.2033,2981.1,2980.5,0.452]
[1766236203958,2.032,2981.2,2980.5,0.452]
[1766236204852,2.032,2981.2,2980.5,3.1163]
[1766236205755,0.001,2981.3,2980.5,3.1163]
[1766236205936,0.001,2981.3,2980.6,2.6643]
[1766236206151,0.001,2981.3,2980.7,2.6643]
[1766236207478,0.001,2981.3,2980.5,3.80711049]
[1766236207479,0.001,2981.3,2981.0,2.0893]
[1766236207673,2.1316,2981.8,2981.1,3.1153]
[1766236208484,2.1316,2981.8,2981.1,0.451]
[1766236208660,2.1316,2981.8,2981.1,3.1153]
[1766236208850,3.35345997,2982.0,2981.1,3.1153]
[1766236209051,0.548676,2981.9,2981.2,2.6643]
[1766236209851,0.548676,2981.9,2981.3,2.6643]
[1766236210063,2.1333,2982.1,2981.3,2.6643]
[1766236210554,2.1374,2982.2,2981.3,4.7536]
[1766236210753,3.35427407,2982.2,2981.3,4.7536]
[1766236210956,2.1364,2982.1,2981.3,4.7536]
[1766236211475,2.1364,2982.1,2981.4,2.6643]
[1766236211668,2.1364,2982.1,2981.5,0.451]
[1766236212071,0.03344944,2982.0,2981.5,0.451]
[1766236212466,0.001,2982.2,2981.5,3.1153]
[1766236212683,0.001,2982.2,2981.7,2.6643]
[1766236213871,0.001,2982.2,2981.7,4.7536]
[1766236214068,0.001,2982.5,2981.8,2.0893]
[1766236214274,2.1404,2982.4,2981.9,0.451]
[1766236214482,2.1404,2982.4,2981.4,2.6643]
[1766236214672,2.1404,2982.4,2981.5,0.451]
[1766236214977,2.1404,2982.4,2981.5,3.1153]
[1766236215163,2.68983319,2982.4,2981.6,2.6643]
[1766236215364,0.001,2982.5,2981.9,2.0893]
[1766236215688,0.001,2982.5,2982.1,2.6643]
[1766236215883,0.001,2982.5,2982.2,2.6643]
[1766236216075,1.7155,2983.1,2982.3,4.7536]
[1766236216274,5.06777151,2983.1,2982.4,0.451]
[1766236216574,0.84198821,2983.0,2982.4,0.451]
[1766236216874,5.06771787,2983.1,2982.4,0.451]
[1766236217272,5.06771787,2983.1,2982.3,4.7536]
[1766236217585,5.06771787,2983.1,2982.4,0.451]
[1766236217895,1.7204,2983.4,2982.4,2.5403]
[1766236218076,5.07229344,2983.4,2982.5,2.6643]
[1766236218269,0.50722934,2983.3,2982.5,4.7536]
[1766236218469,2.22662934,2983.3,2982.5,4.7536]
[1766236218678,2.22662934,2983.3,2982.2,3.35312262]
[1766236218679,0.50722934,2983.3,2982.3,2.0893]
[1766236218885,1.7207,2983.2,2982.6,0.451]
[1766236220296,2.1626,2982.6,2980.6,2.6663]
[1766236220460,12.75887952,2982.7,2980.7,3.1153]
[1766236220461,2.1626,2982.2,2980.7,3.1153]
[1766236220661,0.29785392,2981.5,2980.7,3.1153]
[1766236220888,0.29785392,2981.5,2980.8,2.6643]
[1766236222394,0.29785392,2981.5,2980.9,3.1153]
[1766236222688,0.29885392,2981.5,2980.9,3.1153]
[1766236223084,0.29885392,2981.5,2980.9,2.5403]
[1766236223287,0.29885392,2981.5,2981.0,2.6643]
[1766236223592,0.29885392,2981.5,2981.1,2.6643]
[1766236224403,2.1626,2982.1,2981.2,2.0893]
[1766236224559,2.1626,2981.4,2980.6,0.002]
[1766236224762,0.01006863,2981.5,2980.5,0.451]
[1766236224763,2.1626,2981.2,2980.5,0.451]
[1766236226463,2.1626,2981.6,2980.6,2.6643]
[1766236226793,2.1626,2981.4,2980.6,2.6643]
[1766236226981,0.03344944,2981.3,2980.6,2.6643]
[1766236227184,2.1626,2982.5,2981.0,2.6643]
[1766236227383,2.1626,2982.3,2981.1,0.451]
[1766236227695,2.1626,2982.1,2981.1,0.451]
[1766236227896,2.1626,2982.1,2981.1,3.2309]
[1766236229205,3.35345405,2982.0,2981.1,3.2309]
[1766236229378,2.2205,2981.9,2981.1,3.2309]
[1766236229766,2.2205,2981.4,2980.2,2.7799]
[1766236229982,2.2205,2981.4,2980.3,0.451]
[1766236230566,2.2205,2981.4,2980.2,2.7799]
[1766236230767,2.2205,2981.4,2980.3,0.451]
[1766236230980,2.2205,2981.4,2980.6,0.002]
[1766236231168,2.2205,2981.2,2980.7,0.451]
[1766236236773,0.001,2982.1,2981.0,2.8209]
[1766236236774,2.2094,2981.9,2981.0,2.8209]
[1766236236974,2.2094,2981.9,2981.1,3.2719]
[1766236238794,5.56307898,2981.8,2981.1,3.2719]
[1766236238972,6.45473281,2981.8,2981.1,3.2719]
[1766236239371,3.10105383,2981.8,2981.1,3.2719]
[1766236240205,0.001,2981.3,2981.2,0.451]
[1766236240710,2.2094,2981.8,2981.2,0.451]
[1766236241006,0.001,2982.1,2981.3,2.3195]
[1766236241304,2.43144,2982.1,2981.3,5.1404]
[1766236241499,5.78482349,2982.1,2981.3,5.1404]
[1766236241698,2.43144,2982.1,2981.3,5.1404]
[1766236242579,2.43144,2982.1,2980.6,0.002]
[1766236242785,2.2094,2981.3,2980.7,0.45]
[1766236242991,2.2094,2981.3,2980.8,0.45]
[1766236243192,2.2094,2981.3,2980.7,0.451]
[1766236246394,3.59667392,2982.0,2980.7,2.7705]
[1766236246395,3.35356651,2981.9,2980.7,2.7705]
[1766236246596,2.56907105,2981.8,2980.8,2.8209]
[1766236246995,2.56907105,2981.8,2980.7,0.451]
[1766236247226,3.35379146,2981.7,2980.7,0.451]
[1766236247436,2.2094,2981.6,2980.7,0.451]
[1766236247918,2.2094,2981.6,2980.7,3.80584786]
[1766236248118,0.001,2981.3,2980.9,2.3195]
[1766236248324,5.80601475,2982.0,2981.1,2.8209]
[1766236248528,2.452544,2982.0,2981.2,0.451]
[1766236248695,2.452544,2982.0,2981.2,3.2719]
[1766236249625,2.2094,2981.9,2981.2,3.2719]
[1766236250322,2.2094,2981.8,2981.2,3.2719]
[1766236252521,0.243144,2982.0,2981.2,3.2719]
[1766236252724,0.22204,2982.1,2981.3,2.8209]
[1766236253025,2.2104,2982.1,2981.3,2.3195]
[1766236253323,2.2104,2982.1,2981.4,2.8209]
[1766236253927,2.2104,2982.1,2981.5,2.8209]
[1766236254128,2.2104,2982.1,2981.6,0.45]
[1766236256004,2.2104,2982.1,2981.8,2.8209]
[1766236256005,0.001,2982.1,2981.8,2.8209]
[1766236256525,0.001,2982.1,2980.3,0.45]
[1766236256526,12.76385119,2981.9,2980.3,0.45]
[1766236256900,0.01006863,2981.9,2980.3,0.45]
[1766236257300,0.01006863,2981.9,2980.4,5.1404]
[1766236257504,0.068,2981.8,2980.4,5.1404]
[1766236258827,0.0721,2981.6,2980.5,2.8209]
[1766236259130,0.0721,2981.6,2980.5,5.1404]
[1766236259434,0.34258915,2981.5,2980.6,2.8209]
[1766236259729,0.0721,2981.6,2980.7,0.451]
[1766236259935,0.0721,2981.6,2980.8,2.8209]
[1766236260627,3.35356676,2981.9,2980.8,2.3195]
[1766236260817,0.0801,2981.9,2980.9,2.8209]
[1766236261015,0.0801,2981.9,2980.8,5.1404]
[1766236261212,0.0801,2981.9,2980.8,2.8209]
[1766236261436,0.0801,2981.9,2980.7,0.451]
[1766236261437,0.0811,2982.1,2981.0,2.8209]
[1766236261605,0.0811,2982.1,2981.1,0.451]
[1766236262810,6.7069081,2982.0,2981.1,0.451]
[1766236263027,0.0876,2981.9,2981.1,0.451]
[1766236263341,0.76705081,2981.8,2981.1,0.451]
[1766236263708,0.67945081,2981.8,2981.1,3.2719]
[1766236263937,3.35345405,2982.0,2981.1,3.2719]
[1766236264141,3.44465405,2982.0,2981.1,3.2719]
[1766236264648,0.0912,2982.0,2981.1,3.2719]
[1766236265246,0.0912,2982.0,2981.1,2.6939]
[1766236265411,0.001,2982.1,2981.3,5.3036]
[1766236265611,0.33641172,2982.1,2981.3,5.3036]
[1766236265856,0.33641172,2982.1,2981.4,3.0607]
[1766236266018,0.33641172,2982.1,2981.0,0.002]
[1766236266019,0.1085,2982.0,2981.0,0.002]
[1766236266229,0.1085,2982.0,2981.1,0.1135]
[1766236267432,3.35349,2982.0,2981.1,0.1135]
[1766236267627,3.35349,2982.0,2981.1,3.1742]
[1766236267848,0.335449,2981.9,2981.1,3.1742]
[1766236268165,3.35434474,2982.1,2981.1,5.4171]
[1766236268338,0.001,2982.1,2981.0,0.002]
[1766236268529,0.001,2982.1,2980.7,0.086]
[1766236268530,0.01006863,2982.0,2980.7,0.086]
[1766236268728,0.405504,2982.0,2980.7,0.086]
[1766236269030,0.41557263,2982.0,2980.7,0.086]
[1766236269232,1.04766483,2981.9,2980.7,0.086]
[1766236269560,6.70735796,2981.8,2980.7,0.086]
[1766236270145,4.40123587,2981.9,2980.8,3.09424804]
[1766236270348,3.35357104,2981.9,2980.9,3.0607]
[1766236270963,3.35357104,2981.9,2981.0,3.0607]
[1766236271134,3.35357104,2981.9,2981.0,5.3036]
[1766236271586,0.001,2982.1,2981.0,5.3036]
[1766236271747,12.18285146,2981.7,2981.0,0.4305]
[1766236272060,1.21929201,2981.6,2981.0,1e-08]
[1766236272435,1.21929201,2981.6,2981.1,1e-08]
[1766236272634,0.01006863,2981.8,2981.1,1e-08]
[1766236273650,6.70758292,2981.7,2981.1,1e-08]
[1766236274572,6.70758292,2981.7,2980.6,0.002]
[1766236274768,6.70758292,2981.7,2980.7,0.451]
[1766236277168,6.70758292,2981.7,2980.8,0.451]
[1766236277366,0.67075829,2981.6,2980.8,0.451]
[1766236278465,3.35401643,2981.5,2980.8,0.451]
[1766236278872,6.70803286,2981.5,2980.8,0.451]
[1766236279043,3.35401643,2981.5,2980.8,0.451]
[1766236279441,3.81555865,2982.0,2980.8,9.10939175]
[1766236279442,3.35446966,2982.0,2980.8,9.10939175]
[1766236279649,3.35446966,2982.0,2980.6,3.3570038]
[1766236279650,7.04348629,2982.0,2980.6,0.002]
[1766236279978,10.39695595,2982.0,2980.6,0.002]
[1766236280138,10.39695595,2982.0,2980.7,0.45]
[1766236280335,10.39695595,2982.0,2980.6,0.002]
[1766236280644,7.04348629,2982.0,2980.7,0.45]
[1766236280839,0.70444863,2981.9,2980.7,5.7536]
[1766236282389,0.70444863,2981.9,2980.8,5.7536]
[1766236282577,3.35367898,2981.8,2980.8,5.7536]
[1766236282776,6.70735796,2981.8,2980.8,5.3036]
[1766236282955,6.70735796,2981.8,2980.9,0.45]
[1766236283157,0.74118066,2981.7,2980.9,0.45]
[1766236283378,3.35360636,2981.9,2981.0,3.0607]
[1766236283582,3.35360636,2981.9,2981.0,5.3036]
[1766236284567,0.001,2982.0,2981.0,5.3036]
[1766236284884,0.001,2982.0,2981.2,3.0607]
[1766236285090,0.001,2982.0,2981.1,3.0607]
[1766236285272,0.001,2982.0,2981.3,2.2429]
[1766236285598,0.001,2982.0,2981.4,5.7546]
[1766236288076,0.001,2982.0,2981.5,3.0607]
[1766236288271,0.001,2982.0,2981.5,5.3036]
[1766236291993,0.001,2982.0,2981.1,3.3544265]
[1766236292175,0.001,2982.0,2981.2,0.45]
[1766236292808,0.001,2982.0,2981.2,3.472]
[1766236292980,0.001,2982.0,2981.3,5.5049]
[1766236293568,0.001,2982.0,2981.3,5.83712111]
[1766236293867,0.001,2982.0,2981.5,2.4829]
[1766236294177,0.001,2982.0,2981.6,3.472]
[1766236294669,0.001,2982.0,2981.6,5.9267]
[1766236295903,0.001,2982.0,2981.7,5.7596]
[1766236296077,0.001,2982.0,2981.8,3.3049]
[1766236296611,0.001,2982.5,2981.9,3.3049]
[1766236296792,0.001,2982.5,2982.0,0.45]
[1766236297562,0.001,2982.5,2981.6,3.35389926]
[1766236297766,0.001,2982.5,2981.8,5.7596]
[1766236299198,0.001,2982.5,2982.0,3.3049]
[1766236299395,0.001,2982.5,2982.1,0.45]
[1766236299596,0.001,2982.5,2981.8,3.3049]
[1766236299796,0.001,2982.5,2982.0,0.1]
[1766236300393,0.001,2982.5,2982.1,5.7596]
[1766236300589,0.001,2982.5,2982.0,0.1]
[1766236301105,0.001,2982.5,2982.1,0.449]
[1766236305288,0.001,2982.5,2982.2,0.449]
[1766236306674,0.001,2982.5,2982.2,6.2086]
[1766236307392,0.001,2982.5,2982.2,3.7539]
[1766236308082,0.001,2982.5,2982.2,0.449]
[1766236311507,0.001,2982.7,2982.0,0.1]
[1766236311710,0.001,2982.7,2981.0,0.002]
[1766236311927,0.001,2982.7,2980.6,0.002]
[1766236311928,9.60872623,2981.1,2980.6,0.002]
[1766236312128,9.60872623,2981.1,2980.0,0.002]
[1766236312129,1.55294364,2980.2,2980.1,0.45]
[1766236312431,9.60872623,2981.1,2980.1,0.45]
[1766236312584,0.96087262,2981.0,2980.1,0.45]
[1766236312787,0.96087262,2981.0,2980.2,0.45]
[1766236313531,3.35469153,2980.9,2980.2,0.45]
[1766236313829,3.35469153,2980.9,2980.6,0.002]
[1766236316704,6.70938306,2980.9,2980.4,1e-08]
[1766236316906,1.10248535,2980.8,2980.4,1e-08]
[1766236317816,4.45735011,2980.8,2980.0,3.3069]
[1766236318113,4.45735011,2980.8,2980.1,0.45]